Cogmind - Beta 14 @@@ ROGUE MODE // 2024.08.22 @ 23:51:47 Player: THN-L0C Result: Destroyed by G-47 Trooper with Particle Gun Performance ------------- Evolutions (0) 0 Regions Visited (1) 200 Robots Destroyed (14) 70 Value Destroyed (397) 397 Prototype IDs (0) 0 Alien Tech Used (0) 0 Bonus (0) 0 TOTAL SCORE: 667 Bonus ------- None Cogmind --------- Core Integrity 0/250 Matter 168/300 Energy 100/100 System Corruption 0% Temperature Cool (9) Movement Core (700) Ox13 Location -10/Materials Parts ------- > --- POWER (1) -------- (None) > --- PROPULSION (2) --- (None) > --- UTILITY (2) ------ High-capacity Storage Unit > --- WEAPON (2) ------- Assault Rifle > --- INVENTORY (20) --- VTOL Module VTOL Module VTOL Module VTOL Module VTOL Module VTOL Module VTOL Module VTOL Module Weight Redist. System Weight Redist. System Weight Redist. System Weight Redist. System Structural Scanner Improved Terrain Scanner Peak State ------------ > --- POWER ------------ Light Nuclear Core > --- PROPULSION ------- Light Treads Light Treads > --- UTILITY ---------- High-capacity Storage Unit Seismic Detector > --- WEAPON ----------- Assault Rifle Light Assault Rifle > --- INVENTORY -------- Ion Engine VTOL Module VTOL Module VTOL Module VTOL Module VTOL Module VTOL Module VTOL Module VTOL Module Weight Redist. System Weight Redist. System Weight Redist. System Weight Redist. System Structural Scanner Improved Terrain Scanner Assault Rifle [Rating: 12] Favorites ----------- Power Ion Engine Engine Ion Engine Power Core Light Nuclear Core Propulsion Light Treads Treads Light Treads Utility Seismic Detector Device Seismic Detector Storage High-capacity Storage Unit Weapon Assault Rifle Ballistic Gun Assault Rifle Build | -11 -10 ------- Run | Yrd Mat Slots Evolved . | . . Power . | . . Propulsion . | . . Utility . | . . Weapon . | . . Parts Attached 15 | 7 8 Power 3 | . 3 Engine 2 | . 2 Core 1 | . 1 Reactor . | . . Propulsion 2 | 2 . Treads 2 | 2 . Leg . | . . Wheel . | . . Hover . | . . Flight . | . . Utility 4 | 2 2 Device 1 | 1 . Storage 3 | 1 2 Processor . | . . Hackware . | . . Protection . | . . Artifact . | . . Weapon 6 | 3 3 Energy Gun . | . . Energy Cannon . | . . Ballistic Gun 6 | 3 3 Ballistic Cannon . | . . Launcher . | . . Special Weapon . | . . Impact Weapon . | . . Slashing Weapon . | . . Piercing Weapon . | . . Special Melee Weapon . | . . Unidentified Prototypes . | . . Parts Lost 8 | . 8 Power 2 | . 2 Propulsion 2 | . 2 Utility 1 | . 1 Weapon 3 | . 3 Highest Loss Streak 4 | . 4 To Critical Strikes . | . . Average Slot Usage (%) 93 | . 93 Engine 8 | . 8 Core 2 | . 2 Treads 26 | . 26 Device 13 | . 13 Storage 14 | . 14 Ballistic Gun 26 | . 26 Peak Build Rating 12 | 6 12 Average Rating 7 | 4 7 On Entrance 3 | . 6 Naked Turns . | . . Heaviest Build 49 | 10 49 Greatest Support 40 | 40 40 Greatest Overweight (x) 2 | . 2 Average Overweight (x) . | . . Largest Inventory Capacity 20 | 8 20 Average Capacity 13 | 6 14 Most Carried 16 | 2 16 Average Carried 6 | . 7 Final Capacity 20 | 8 20 Final Carried 14 | 2 14 Class Distribution -------------------- 100% | Mutant Dominant Class ---------------- Mutant | -10/Materials Resources | -11 -10 ----------- Run | Yrd Mat Matter Collected 424 | 161 263 Remotely . | . . Salvage Created 459 | 43 416 Parts 30 | 4 26 Haulers Intercepted . | . . Recyclers Shooed . | . . Parts Field Recycled . | . . Retrieved Matter . | . . Parts Self-Destructed . | . . Prevented . | . . Kills | -11 -10 ------- Run | Yrd Mat Combat Hostiles Destroyed 10 | . 10 Guns 9 | . 9 AOE 1 | . 1 Classes Destroyed 5 | 1 4 Builder 1 | . 1 Tunneler 2 | 2 . Watcher 1 | . 1 Swarmer 1 | . 1 Grunt 9 | . 9 Best Kill Streak 3 | 2 3 Combat Bots Only 3 | . 3 Max Kills in Single Turn 2 | 2 1 Gunslinging . | . . Exploded 1 | . 1 Melee . | . . Uniques/NPCs Destroyed . | . . Combat | -11 -10 -------- Run | Yrd Mat Hostile Shots Fired 89 | . 89 Missed 19 | . 19 Damage Taken 1047 | . 1047 Core 258 | . 258 Absorbed by Shields . | . . Core Remaining (%) 100 | 100 . Volleys Fired 59 | 3 56 Largest 2 | 2 2 Hottest 40 | 40 40 Shots Fired 104 | 6 98 Gun 104 | 6 98 Cannon . | . . Launcher . | . . Special . | . . Kinetic 104 | 6 98 Thermal . | . . Explosive . | . . Electromagnetic . | . . Robot Hit Streak 12 | 2 12 Robot Miss Streak 4 | 1 4 Penetration Max . | . . Secondary Targets 1 | . 1 Max Gunslinging Chain 1 | . 1 Shots Hit Robots 74 | 3 71 Core Hits 27 | 2 25 Critical Kills . | . . Critical Parts Destroyed . | . . Critical Strikes . | . . Melee Attacks . | . . Impact . | . . Slashing . | . . Piercing . | . . Sneak Attacks . | . . Combat Hostiles . | . . Follow-up Attacks . | . . Damage Inflicted 1062 | 49 1013 Guns 822 | 49 773 Cannons . | . . Explosions 229 | . 229 Melee . | . . Ramming 11 | . 11 Kinetic 822 | 49 773 Thermal . | . . Explosive 229 | . 229 Electromagnetic . | . . Impact . | . . Slashing . | . . Piercing . | . . Highest Corruption . | . . Average Corruption . | . . Corruption Purged . | . . Corruption Blocked . | . . Overload Shots . | . . Overflow Damage 91 | . 91 Projectiles . | . . Explosions 91 | . 91 Melee . | . . Knockbacks . | . . Impact . | . . Kinetic . | . . Secondary . | . . Self-Inflicted Damage 221 | . 221 Shots 2 | . 2 Rammed 3 | . 3 Targets Rammed 3 | . 3 Kicked . | . . Crushed . | . . Highest Temperature 27 | . 27 Average Temperature 6 | . 6 Received Heat Transfer 384 | . 384 Siege Activations . | . . Robots Corrupted . | . . Combat Hostiles . | . . Parts Fried . | . . Impact Corruptions . | . . Robots Melted . | . . Combat Hostiles . | . . Parts Melted . | . . Heat Transferred . | . . Parts Sabotaged . | . . Parts Stolen . | . . Parts Stripped . | . . Power Chain Reactions . | . . Alert | -11 -10 ------- Run | Yrd Mat Peak Influence 118 | 10 118 Initial 6 | . 6 Average 40 | 2 43 Maximum Alert Level . | . . Low Security (%) 100 | 100 100 Level 1 . | . . Level 2 . | . . Level 3 . | . . Level 4 . | . . Level 5 . | . . High Security . | . . Max Security . | . . Squads Dispatched 2 | . 2 Investigation 2 | . 2 Extermination . | . . Reinforcement . | . . Assault . | . . Garrison . | . . Intercept . | . . Searches Triggered . | . . Construction Impeded . | . . Haulers Reinforced . | . . Active Scanning Responses . | . . Cargo Convoy Interrupts . | . . Stealth | -11 -10 --------- Run | Yrd Mat Distress Signals 1 | . 1 Communications Jammed . | . . Distress Signals . | . . Times Spotted 21 | . 21 Peak Tracking Total 4 | . 4 Tactical Retreats 2 | . 2 Traps | -11 -10 ------- Run | Yrd Mat Traps Triggered . | . . Indirectly . | . . Trap Hack Attempts . | . . Triggered . | . . Disarmed . | . . Reprogrammed . | . . Reused . | . . Traps Extracted . | . . Installed . | . . Triggered . | . . Machines | -11 -10 ---------- Run | Yrd Mat Machines Disabled 2 | . 2 Max in Single Turn 2 | . 2 Machines Repaired . | . . Machines Dismantled . | . . Machines Sabotaged . | . . Overloaded Fab Kills . | . . Hacking | -11 -10 --------- Run | Yrd Mat Machines Accessed 6 | . 6 Terminals 6 | . 6 Fabricators . | . . Repair Stations . | . . Recycling Units . | . . Scanalyzers . | . . Garrison Access . | . . Total Hacks 22 | . 22 Successful 14 | . 14 Failed 8 | . 8 Catastrophic . | . . Database Lockouts . | . . Manual 12 | . 12 Terminals 22 | . 22 Fabricators . | . . Repair Stations . | . . Recycling Units . | . . Scanalyzers . | . . Garrison Access . | . . Terminal Hacks 11 | . 11 Robot Analysis 2 | . 2 Emergency Access Points 2 | . 2 Unreport Threat 1 | . 1 Locate Traps 2 | . 2 Hauler Manifests 1 | . 1 Registered Components 1 | . 1 Zone Layout 2 | . 2 Fabricator Hacks . | . . Repair Station Hacks . | . . Recycling Unit Hacks . | . . Scanalyzer . | . . Garrison Access Hacks . | . . Unauthorized Hacks 3 | . 3 Terminals 3 | . 3 Botnet 3 | . 3 Fabricators . | . . Repair Stations . | . . Recycling Units . | . . Scanalyzers . | . . Garrison Access . | . . Data Cores Recovered . | . . Used . | . . Hacking Detections 6 | . 6 Full Trace Events 2 | . 2 Feedback Events . | . . Feedback Blocked . | . . Robot Schematics Acquired . | . . Robots Built . | . . Authchips . | . . Time . | . . Total Robot Build Rating . | . . Part Schematics Acquired . | . . Parts Built . | . . Authchips . | . . Time . | . . Total Part Build Rating . | . . Parts Repaired . | . . Time . | . . Parts Recycled . | . . Recycled Matter . | . . Retrieved Matter . | . . Retrieved Components . | . . Parts Scanalyzed . | . . Part Schematics Acquired . | . . Parts Damaged . | . . Bothacking | -11 -10 ------------ Run | Yrd Mat Used RIF Installer . | . . Robots Hacked . | . . Non-combat . | . . Combat . | . . Robot Hacks Applied . | . . Relay Couplers Released . | . . Fabnet Peak Effective % . | . . Robots Rewired . | . . Allies Hacked . | . . Hacks Repelled . | . . Allies | -11 -10 -------- Run | Yrd Mat Total Allies . | . . Largest Group . | . . Highest-Rated Group . | . . Highest-Rated Ally . | . . Total Orders . | . . Ally Attacks . | . . Total Damage . | . . Kills . | . . Allies Corrupted . | . . Allies Melted . | . . Intel | -11 -10 ------- Run | Yrd Mat Robot Analysis Total 2 | . 2 Derelict Logs Recovered . | . . Drone Launches . | . . Drone Recoveries . | . . Exploration | -11 -10 ------------- Run | Yrd Mat Turns Passed 986 | 75 911 Spaces Moved 348 | 37 311 Core 4 | 4 . Treads 344 | 33 311 Legs . | . . Wheels . | . . Hover . | . . Flight . | . . Fastest Speed 50 | 50 160 Average Speed 189 | 148 194 Slowest Speed 320 | 160 320 Overloaded Moves . | . . Propulsion Burnouts . | . . Robots Hopped . | . . Cave-ins Triggered . | . . Exploration Rate (%) 28 | 4 52 Regions Visited 1 Branch Regions . Pre-discovered Areas . | . . Known Exits Taken . | . . Unknown Exits Taken 1 | 1 . Scrap Searched . | . . Spaces Dug . | . . Terrain Destroyed 31 | . 31 Melee . | . . Projectile . | . . AOE 31 | . 31 Terrain Rammed . | . . Walls Destroyed . | . . Machines Disabled . | . . Actions | -11 -10 --------- Run | Yrd Mat Total 571 | 48 523 Wait 129 | 1 128 Move 347 | 36 311 Hop . | . . Pick Up 15 | 1 14 Fast Attach 7 | 6 1 Attach 3 | . 3 Detach . | . . Swap 5 | 1 4 Drop 3 | . 3 Fire 59 | 3 56 Melee . | . . Ram . | . . Kick . | . . Crush 3 | . 3 Escape Stasis . | . . Rewire . | . . Trap . | . . Miscellaneous . | . . Route ------- -11/Scrapyard -10/Materials (discovered 1 exit: [*Mat]) History --------- Turn | Location | Event 10 | -11/Scrapyard | Discovered new exit (range 16) 76 | -11/Scrapyard | Entered Materials 330 | -10/Materials | Build established: Mutant 538 | -10/Materials | Discovered new exit (range 11) 955 | -10/Materials | Lost 3 parts (1p1n1w) 972 | -10/Materials | Core integrity fell below 50% 984 | -10/Materials | Core integrity fell below 20% 987 | -10/Materials | Destroyed by G-47 Trooper with Particle Gun Last Messages --------------- 00926_ The unstable cave ceiling collapses. 00947_ U-05 Engineer lays Concrete. 00948_ U-05 Engineer builds a Wall. 00949_ The unstable cave ceiling collapses. 00949_ M-13 Machinist repairs S-10 Pest. 00953_ U-05 Engineer lays Concrete. 00955_ U-05 Engineer builds a Wall. 00955_ R-06 Scavenger collects Flight Unit. 00957_ The unstable cave ceiling collapses. 00960_ U-05 Engineer lays Concrete. 00962_ Assault Rifle destroyed. 00964_ U-05 Engineer lays Concrete. 00966_ U-05 Engineer builds a Wall. 00970_ U-05 Engineer destroyed. 00974_ Seismic Detector destroyed. 00974_ G-34 Mercenary destroyed. 00976_ Lgt. Treads destroyed. 00977_ The unstable cave ceiling collapses. 00981_ Ion Engine destroyed. 00983_ K-01 Serf collects debris. Map ----- +----------------------------------------------------+ | | | | | | | | | | | | | | | | | | | | | | | | | | | | | | | | | | | | | | | ?????????????????????????????## # ############ | | ????????????????????????????## # # | | ?????????????####????????###### # """ # | | ???????????### ####### ! # """ # | | ?????????? # # """ # | | ?????????? ss= k |# # | | ?????????? @ =%# ####+####+ | | ?????????????# ####### = !*# / | | ?????????????????????????##%g ## # #### ### | | ??????????????????????????#*[ # # #??# # | | ??????????????????????????# # # ### #??# /! | | ??????????????????????????# ## ###### ##?# # | | ??????????????????????????# ########## ! #?# # | | ??????????????????????????# ????? #?# # [ | | ??????????????????????????# ##????#### #?# ##+ | | ??????????????????????????# #????????#####?# ##^ | | ??????????????????????????# #?????###??????# ##+ | | ??????????????????????????" #????? #??????# # | | ??????????????????????????T #?????" #??????# # | | ??????????????????????????" #??????????????? ??? | | ??????????????????????????? #??????????????? ??? | | ??????????????????????????? ???????????????+??? | | ???????????????????????????#/##??????????????? ??? | | ???????????????????????????? ????????????????? ??? | | ?????????????????????????????????????????????? ??? | | ?????????????????????????????????????????????????? | | ?????????????????????????????????????????????????? | | ?????????????????????????????????????????????????? | | ?????????????????????????????????????????????????? | | ?????????????????????????????????????????????????? | | ?????????????????????????????????????????????????? | +----------------------------------------------------+ Best States ------------- Heat Dissipation 25 Energy Generation 14 Energy Capacity 250 Matter Stores 201 Matter Capacity 300 Sight Range 16 Terrain Scan Density 10 Evasion (%) 40 Recoil Reduction 2 Item Schematics ----------------- None Robot Schematics ------------------ None Fabricated ------------ Nothing Alien Tech Used ----------------- None Achievements -------------- None Challenges ------------ None Game ------ Seed VampiricWeightMatrix Manual? 0 Play Time 00:09:54 Cumulative 109.0 hours Start 2024.08.22 @ 23:46:37 End 2024.08.22 @ 23:51:47 Sessions 1 Manual Loads 0 Difficulty Rogue Special Mode None Game No. 91 Rogue 91 Adventurer 0 Explorer 0 Win Type - Total 0 Types 0/0/0/0/0/0/0/0/0 Lore% 49 Gallery% 58 Achievement% 47 Wizard Run 0 Options --------- Layout 2 ASCII 0 Keyboard 1 Movement Vi Keybinds 0 Fullscreen 1 Font 32/SmallcapsGlow Map View 77x44 Zoom Use 0% Tactical HUD 1 Map Filters NONE Filters NONE Steam 1 RUN: 0cd504be-07ef-40d8-a0cc-dc2869a3850a